[Event "Titled Tuesday Blitz August 09 Early 2022"]
[White "Ovezdurdyyeva, Jemal"]
[Black "Nasir, Zehn"]
[WhiteFideId "14001888"]
[BlackFideId "2613239"]
[WhiteElo "1946"]
[BlackElo "1993"]
[Result "0-1"]
[Round "03"]
[TimeControl "180+1"]
[Date "2022.08.09"]
[WhiteClock "0:02:04"]
[BlackClock "0:00:55"]

1. e4 {[%clk 0:03:00]}  c6 {[%clk 0:02:59]} 2. d4 {[%clk 0:03:00]}  d5 {[%clk 0:03:00]} 3. Nd2 {[%clk 0:02:59]}  dxe4 {[%clk 0:03:00]} 4. Nxe4 {[%clk 0:03:00]}  Bf5 {[%clk 0:03:00]} 5. Ng3 {[%clk 0:03:00]}  Bg6 {[%clk 0:03:01]} 6. h4 {[%clk 0:03:00]}  h6 {[%clk 0:03:01]} 7. Nf3 {[%clk 0:03:01]}  Nd7 {[%clk 0:03:01]} 8. Bd3 {[%clk 0:03:01]}  Bxd3 {[%clk 0:03:00]} 9. Qxd3 {[%clk 0:03:01]}  e6 {[%clk 0:02:58]} 10. Bf4 {[%clk 0:03:01]}  Qa5+ {[%clk 0:02:54]} 11. c3 {[%clk 0:02:58]}  Ngf6 {[%clk 0:02:52]} 12. O-O {[%clk 0:02:55]}  Be7 {[%clk 0:02:51]} 13. Rfe1 {[%clk 0:02:52]}  O-O {[%clk 0:02:30]} 14. a3 {[%clk 0:02:52]}  Rfd8 {[%clk 0:02:23]} 15. b4 {[%clk 0:02:49]}  Qb6 {[%clk 0:02:22]} 16. c4 {[%clk 0:02:45]}  a5 {[%clk 0:02:07]} 17. c5 {[%clk 0:02:38]}  Qa6 {[%clk 0:01:47]} 18. Qxa6 {[%clk 0:02:38]}  Rxa6 {[%clk 0:01:47]} 19. Bc7 {[%clk 0:02:38]}  Rda8 {[%clk 0:01:38]} 20. Bxa5 {[%clk 0:02:38]}  Nd5 {[%clk 0:01:32]} 21. Ne4 {[%clk 0:02:33]}  N7f6 {[%clk 0:01:02]} 22. Ne5 {[%clk 0:02:03]}  Nxe4 {[%clk 0:00:59]} 23. Re2 {[%clk 0:02:04]}  Nec3 {[%clk 0:00:55]} 0-1


[Site "https://www.chess.com"]

[Event "Titled Tuesday Blitz August 09 Early 2022"]
[White "Perez Leiva, Jerzy Jesus"]
[Black "Vakhlamov, Igor L."]
[WhiteFideId "3524337"]
[BlackFideId "24126748"]
[WhiteElo "2287"]
[BlackElo "2401"]
[Result "0-1"]
[Round "03"]
[TimeControl "180+1"]
[Date "2022.08.09"]
[WhiteClock "0:00:01"]
[BlackClock "0:00:28"]

1. c4 {[%clk 0:02:59]}  Nf6 {[%clk 0:02:58]} 2. Nc3 {[%clk 0:02:59]}  e6 {[%clk 0:02:59]} 3. g3 {[%clk 0:02:58]}  d5 {[%clk 0:02:58]} 4. Bg2 {[%clk 0:02:57]}  d4 {[%clk 0:02:58]} 5. Ne4 {[%clk 0:02:53]}  Nxe4 {[%clk 0:02:48]} 6. Bxe4 {[%clk 0:02:53]}  Nc6 {[%clk 0:02:37]} 7. d3 {[%clk 0:02:51]}  Bc5 {[%clk 0:02:33]} 8. a3 {[%clk 0:02:50]}  a5 {[%clk 0:02:33]} 9. Bd2 {[%clk 0:02:14]}  O-O {[%clk 0:02:30]} 10. h4 {[%clk 0:01:49]}  Qe7 {[%clk 0:02:11]} 11. Nh3 {[%clk 0:01:47]}  f5 {[%clk 0:02:06]} 12. Bg2 {[%clk 0:01:44]}  e5 {[%clk 0:01:55]} 13. Ng5 {[%clk 0:01:36]}  Nd8 {[%clk 0:01:25]} 14. Bd5+ {[%clk 0:01:15]}  Kh8 {[%clk 0:01:25]} 15. e3 {[%clk 0:01:14]}  c6 {[%clk 0:01:22]} 16. Nxh7 {[%clk 0:00:58]}  cxd5 {[%clk 0:01:20]} 17. Nxf8 {[%clk 0:00:59]}  Qxf8 {[%clk 0:01:17]} 18. cxd5 {[%clk 0:00:55]}  dxe3 {[%clk 0:01:04]} 19. fxe3 {[%clk 0:00:53]}  Nf7 {[%clk 0:00:52]} 20. Rc1 {[%clk 0:00:40]}  b6 {[%clk 0:00:52]} 21. Rf1 {[%clk 0:00:33]}  Nh6 {[%clk 0:00:34]} 22. e4 {[%clk 0:00:07]}  f4 {[%clk 0:00:31]} 23. d4 {[%clk 0:00:02]}  Bg4 {[%clk 0:00:28]} 24. Qc2 {[%clk 0:00:01]}  Bxd4 {[%clk 0:00:28]} 25. gxf4 {[%clk 0:00:01]}  Qe7 {[%clk 0:00:28]} 26. fxe5 {[%clk 0:00:01]}  Qxh4+ {[%clk 0:00:28]} 0-1


[Site "https://www.chess.com"]

[Event "Titled Tuesday Blitz August 09 Early 2022"]
[White "Pourkashiyan, Atousa"]
[Black "Adewumi, Tanitoluwa"]
[WhiteFideId "12502014"]
[BlackFideId "30966396"]
[WhiteElo "2247"]
[BlackElo "2506"]
[Result "0-1"]
[Round "03"]
[TimeControl "180+1"]
[Date "2022.08.09"]
[WhiteClock "0:00:03"]
[BlackClock "0:00:04"]

1. e4 {[%clk 0:02:56]}  c5 {[%clk 0:02:59]} 2. Nf3 {[%clk 0:02:55]}  e6 {[%clk 0:02:58]} 3. d4 {[%clk 0:02:55]}  cxd4 {[%clk 0:02:57]} 4. Nxd4 {[%clk 0:02:56]}  Nc6 {[%clk 0:02:56]} 5. Nc3 {[%clk 0:02:57]}  Qc7 {[%clk 0:02:56]} 6. Be2 {[%clk 0:02:56]}  a6 {[%clk 0:02:53]} 7. O-O {[%clk 0:02:57]}  Nf6 {[%clk 0:02:53]} 8. Be3 {[%clk 0:02:57]}  Be7 {[%clk 0:02:52]} 9. f4 {[%clk 0:02:55]}  d6 {[%clk 0:02:51]} 10. Qe1 {[%clk 0:02:54]}  O-O {[%clk 0:02:47]} 11. Qg3 {[%clk 0:02:53]}  Nxd4 {[%clk 0:02:39]} 12. Bxd4 {[%clk 0:02:54]}  b5 {[%clk 0:02:39]} 13. a3 {[%clk 0:02:53]}  Bb7 {[%clk 0:02:37]} 14. Rae1 {[%clk 0:02:53]}  Rad8 {[%clk 0:02:14]} 15. Kh1 {[%clk 0:02:38]}  g6 {[%clk 0:01:31]} 16. f5 {[%clk 0:02:19]}  e5 {[%clk 0:01:16]} 17. Be3 {[%clk 0:02:17]}  Bxe4 {[%clk 0:00:57]} 18. Bg5 {[%clk 0:01:46]}  Bb7 {[%clk 0:00:33]} 19. Qh4 {[%clk 0:01:41]}  Kg7 {[%clk 0:00:25]} 20. Bf3 {[%clk 0:01:22]}  d5 {[%clk 0:00:15]} 21. Qh6+ {[%clk 0:00:34]}  Kh8 {[%clk 0:00:14]} 22. Qh4 {[%clk 0:00:35]}  Kg7 {[%clk 0:00:12]} 23. h3 {[%clk 0:00:35]}  h5 {[%clk 0:00:07]} 24. Qg3 {[%clk 0:00:23]}  Bd6 {[%clk 0:00:05]} 25. Bxf6+ {[%clk 0:00:18]}  Kxf6 {[%clk 0:00:06]} 26. fxg6 {[%clk 0:00:16]}  fxg6 {[%clk 0:00:03]} 27. Bxh5+ {[%clk 0:00:15]}  Ke7 {[%clk 0:00:03]} 28. Qxg6 {[%clk 0:00:14]}  Kd7 {[%clk 0:00:03]} 29. Bg4+ {[%clk 0:00:14]}  Kc6 {[%clk 0:00:02]} 30. Rxf8 {[%clk 0:00:13]}  Rxf8 {[%clk 0:00:03]} 31. Qd3 {[%clk 0:00:13]}  e4 {[%clk 0:00:03]} 32. Qxd5+ {[%clk 0:00:13]}  Kb6 {[%clk 0:00:03]} 33. Qd4+ {[%clk 0:00:13]}  Bc5 {[%clk 0:00:04]} 34. Qd2 {[%clk 0:00:12]}  e3 {[%clk 0:00:04]} 35. Qe2 {[%clk 0:00:12]}  Rf2 {[%clk 0:00:04]} 36. Qd1 {[%clk 0:00:11]}  Bxg2+ {[%clk 0:00:03]} 37. Kg1 {[%clk 0:00:11]}  e2 {[%clk 0:00:03]} 38. Qd7 {[%clk 0:00:10]}  Rf1+ {[%clk 0:00:02]} 39. Kxg2 {[%clk 0:00:07]}  Qxd7 {[%clk 0:00:02]} 40. Bxd7 {[%clk 0:00:07]}  Rxe1 {[%clk 0:00:03]} 41. Bg4 {[%clk 0:00:05]}  Rg1+ {[%clk 0:00:03]} 42. Kf3 {[%clk 0:00:03]}  e1=Q {[%clk 0:00:04]} 0-1


[Site "https://www.chess.com"]

[Event "Titled Tuesday Blitz August 09 Early 2022"]
[White "Rom, Jasper"]
[Black "Slugin, Sergey"]
[WhiteFideId "2023733"]
[BlackFideId "4122569"]
[WhiteElo "2233"]
[BlackElo "2330"]
[Result "0-1"]
[Round "03"]
[TimeControl "180+1"]
[Date "2022.08.09"]
[WhiteClock "0:00:04"]
[BlackClock "0:00:16"]

1. e4 {[%clk 0:03:00]}  e5 {[%clk 0:03:00]} 2. Nf3 {[%clk 0:03:00]}  Nc6 {[%clk 0:03:00]} 3. Bb5 {[%clk 0:03:00]}  a6 {[%clk 0:03:00]} 4. Bxc6 {[%clk 0:03:00]}  dxc6 {[%clk 0:03:00]} 5. O-O {[%clk 0:03:00]}  Ne7 {[%clk 0:03:01]} 6. d4 {[%clk 0:02:59]}  exd4 {[%clk 0:03:01]} 7. Nxd4 {[%clk 0:02:59]}  c5 {[%clk 0:03:00]} 8. Ne2 {[%clk 0:02:59]}  Qxd1 {[%clk 0:03:01]} 9. Rxd1 {[%clk 0:02:59]}  Bd7 {[%clk 0:03:00]} 10. Nbc3 {[%clk 0:02:54]}  O-O-O {[%clk 0:02:59]} 11. Bf4 {[%clk 0:02:51]}  Bc6 {[%clk 0:02:32]} 12. Rxd8+ {[%clk 0:02:49]}  Kxd8 {[%clk 0:02:32]} 13. Rd1+ {[%clk 0:02:48]}  Kc8 {[%clk 0:02:33]} 14. f3 {[%clk 0:02:43]}  a5 {[%clk 0:02:17]} 15. Be3 {[%clk 0:02:37]}  b6 {[%clk 0:02:17]} 16. Nf4 {[%clk 0:02:36]}  Ng6 {[%clk 0:02:09]} 17. Nfd5 {[%clk 0:02:24]}  Kb7 {[%clk 0:02:05]} 18. a4 {[%clk 0:02:17]}  Bd6 {[%clk 0:01:45]} 19. Nb5 {[%clk 0:02:11]}  Be5 {[%clk 0:01:37]} 20. b3 {[%clk 0:02:11]}  Rd8 {[%clk 0:01:35]} 21. c4 {[%clk 0:02:10]}  Be8 {[%clk 0:01:18]} 22. f4 {[%clk 0:02:07]}  Nxf4 {[%clk 0:01:04]} 23. g3 {[%clk 0:01:50]}  Ne6 {[%clk 0:00:58]} 24. Ndc3 {[%clk 0:00:52]}  Rxd1+ {[%clk 0:00:58]} 25. Nxd1 {[%clk 0:00:52]}  Bxb5 {[%clk 0:00:59]} 26. cxb5 {[%clk 0:00:45]}  Nd4 {[%clk 0:01:00]} 27. Bxd4 {[%clk 0:00:38]}  Bxd4+ {[%clk 0:01:00]} 28. Kf1 {[%clk 0:00:38]}  c6 {[%clk 0:01:00]} 29. Ke2 {[%clk 0:00:38]}  cxb5 {[%clk 0:00:50]} 30. axb5 {[%clk 0:00:37]}  Kc7 {[%clk 0:00:51]} 31. Kd3 {[%clk 0:00:37]}  Kd6 {[%clk 0:00:52]} 32. Kc4 {[%clk 0:00:37]}  Ke5 {[%clk 0:00:51]} 33. Kd3 {[%clk 0:00:36]}  h5 {[%clk 0:00:44]} 34. Ne3 {[%clk 0:00:28]}  Bxe3 {[%clk 0:00:35]} 35. Kxe3 {[%clk 0:00:29]}  f5 {[%clk 0:00:23]} 36. exf5 {[%clk 0:00:26]}  Kxf5 {[%clk 0:00:24]} 37. h3 {[%clk 0:00:21]}  Ke5 {[%clk 0:00:21]} 38. Kd3 {[%clk 0:00:19]}  Kd5 {[%clk 0:00:19]} 39. Kc3 {[%clk 0:00:16]}  g6 {[%clk 0:00:12]} 40. Kd3 {[%clk 0:00:15]}  g5 {[%clk 0:00:12]} 41. h4 {[%clk 0:00:05]}  g4 {[%clk 0:00:11]} 42. Ke3 {[%clk 0:00:05]}  c4 {[%clk 0:00:12]} 43. bxc4+ {[%clk 0:00:04]}  Kxc4 {[%clk 0:00:12]} 44. Kf4 {[%clk 0:00:03]}  a4 {[%clk 0:00:13]} 45. Kg5 {[%clk 0:00:04]}  a3 {[%clk 0:00:14]} 46. Kxh5 {[%clk 0:00:05]}  a2 {[%clk 0:00:15]} 47. Kxg4 {[%clk 0:00:05]}  a1=Q {[%clk 0:00:16]} 48. h5 {[%clk 0:00:06]}  Qg7+ {[%clk 0:00:16]} 49. Kh4 {[%clk 0:00:04]}  Kxb5 {[%clk 0:00:16]} 50. g4 {[%clk 0:00:04]}  Qf6+ {[%clk 0:00:15]} 51. g5 {[%clk 0:00:04]}  Qf4+ {[%clk 0:00:16]} 0-1


[Site "https://www.chess.com"]

[Event "Titled Tuesday Blitz August 09 Early 2022"]
[White "Sammed Jaykumar, Shete"]
[Black "Mohammed, Dilshad"]
[WhiteFideId "5073421"]
[BlackFideId "5050421"]
[WhiteElo "2239"]
[BlackElo "2102"]
[Result "0-1"]
[Round "03"]
[TimeControl "180+1"]
[Date "2022.08.09"]
[WhiteClock "0:00:02"]
[BlackClock "0:00:13"]

1. e4 {[%clk 0:03:00]}  e5 {[%clk 0:02:59]} 2. Nf3 {[%clk 0:02:58]}  Nc6 {[%clk 0:02:59]} 3. Bb5 {[%clk 0:02:57]}  a6 {[%clk 0:02:59]} 4. Ba4 {[%clk 0:02:56]}  Nf6 {[%clk 0:02:59]} 5. O-O {[%clk 0:02:55]}  Be7 {[%clk 0:02:59]} 6. Re1 {[%clk 0:02:53]}  b5 {[%clk 0:02:57]} 7. Bb3 {[%clk 0:02:54]}  d6 {[%clk 0:02:58]} 8. d3 {[%clk 0:02:43]}  O-O {[%clk 0:02:58]} 9. a3 {[%clk 0:02:41]}  Be6 {[%clk 0:02:53]} 10. Ba2 {[%clk 0:02:22]}  Bxa2 {[%clk 0:02:51]} 11. Rxa2 {[%clk 0:02:23]}  Qd7 {[%clk 0:02:45]} 12. Nc3 {[%clk 0:02:14]}  Rab8 {[%clk 0:02:40]} 13. Bg5 {[%clk 0:02:11]}  Rfd8 {[%clk 0:02:39]} 14. Bxf6 {[%clk 0:01:54]}  Bxf6 {[%clk 0:02:40]} 15. Nd5 {[%clk 0:01:55]}  Be7 {[%clk 0:02:36]} 16. a4 {[%clk 0:01:55]}  Bf8 {[%clk 0:02:27]} 17. axb5 {[%clk 0:01:53]}  axb5 {[%clk 0:02:28]} 18. Qd2 {[%clk 0:01:52]}  h6 {[%clk 0:02:18]} 19. Nh4 {[%clk 0:01:47]}  Ne7 {[%clk 0:02:12]} 20. Nxe7+ {[%clk 0:01:28]}  Qxe7 {[%clk 0:02:10]} 21. Nf5 {[%clk 0:01:27]}  Qf6 {[%clk 0:02:07]} 22. Ra7 {[%clk 0:01:25]}  Rbc8 {[%clk 0:01:55]} 23. c4 {[%clk 0:01:16]}  bxc4 {[%clk 0:01:51]} 24. dxc4 {[%clk 0:01:16]}  c6 {[%clk 0:01:44]} 25. Ra6 {[%clk 0:01:11]}  Kh7 {[%clk 0:01:35]} 26. Rd1 {[%clk 0:00:56]}  g6 {[%clk 0:01:33]} 27. Ne3 {[%clk 0:00:56]}  Qe6 {[%clk 0:01:27]} 28. Ra7 {[%clk 0:00:46]}  h5 {[%clk 0:01:10]} 29. Qe2 {[%clk 0:00:33]}  Kg8 {[%clk 0:01:09]} 30. h3 {[%clk 0:00:18]}  Rb8 {[%clk 0:01:05]} 31. Rd3 {[%clk 0:00:15]}  Bh6 {[%clk 0:01:03]} 32. b3 {[%clk 0:00:15]}  Bf4 {[%clk 0:01:00]} 33. Ra6 {[%clk 0:00:15]}  Qc8 {[%clk 0:00:58]} 34. Ra1 {[%clk 0:00:13]}  Qe6 {[%clk 0:00:57]} 35. Rad1 {[%clk 0:00:13]}  Bh6 {[%clk 0:00:56]} 36. h4 {[%clk 0:00:13]}  Bf8 {[%clk 0:00:54]} 37. g3 {[%clk 0:00:13]}  Be7 {[%clk 0:00:54]} 38. Kg2 {[%clk 0:00:11]}  Rb7 {[%clk 0:00:52]} 39. Qa2 {[%clk 0:00:09]}  Rdb8 {[%clk 0:00:52]} 40. Qa4 {[%clk 0:00:09]}  Rb6 {[%clk 0:00:44]} 41. Qa2 {[%clk 0:00:08]}  R6b7 {[%clk 0:00:44]} 42. Qc2 {[%clk 0:00:08]}  Ra8 {[%clk 0:00:43]} 43. c5 {[%clk 0:00:07]}  dxc5 {[%clk 0:00:41]} 44. Nc4 {[%clk 0:00:08]}  Rba7 {[%clk 0:00:38]} 45. Qc3 {[%clk 0:00:07]}  f6 {[%clk 0:00:28]} 46. Qd2 {[%clk 0:00:07]}  Kg7 {[%clk 0:00:27]} 47. Qe3 {[%clk 0:00:04]}  Rb7 {[%clk 0:00:20]} 48. Qe2 {[%clk 0:00:02]}  Rab8 {[%clk 0:00:20]} 49. Qc2 {[%clk 0:00:02]}  Ra8 {[%clk 0:00:20]} 50. Ne3 {[%clk 0:00:02]}  Rba7 {[%clk 0:00:19]} 51. Nc4 {[%clk 0:00:02]}  Ra2 {[%clk 0:00:19]} 52. Qc1 {[%clk 0:00:03]}  f5 {[%clk 0:00:18]} 53. exf5 {[%clk 0:00:02]}  Qxf5 {[%clk 0:00:18]} 54. Rf3 {[%clk 0:00:02]}  Qe4 {[%clk 0:00:18]} 55. Qc3 {[%clk 0:00:02]}  Bf6 {[%clk 0:00:17]} 56. Re1 {[%clk 0:00:02]}  Qd5 {[%clk 0:00:16]} 57. Nxe5 {[%clk 0:00:02]}  Re8 {[%clk 0:00:13]} 0-1


[Site "https://www.chess.com"]

[Event "Titled Tuesday Blitz August 09 Early 2022"]
[White "Samunenkov, Ihor"]
[Black "Drozdowski, Kacper"]
[WhiteFideId "14187086"]
[BlackFideId "1136720"]
[WhiteElo "2699"]
[BlackElo "2964"]
[Result "0-1"]
[Round "03"]
[TimeControl "180+1"]
[Date "2022.08.09"]
[WhiteClock "0:00:02"]
[BlackClock "0:00:57"]

1. d4 {[%clk 0:03:00]}  Nf6 {[%clk 0:02:59]} 2. c4 {[%clk 0:03:00]}  g6 {[%clk 0:03:00]} 3. Nf3 {[%clk 0:03:00]}  Bg7 {[%clk 0:03:00]} 4. g3 {[%clk 0:03:01]}  O-O {[%clk 0:03:00]} 5. Bg2 {[%clk 0:03:01]}  d6 {[%clk 0:03:01]} 6. O-O {[%clk 0:03:01]}  Nc6 {[%clk 0:03:01]} 7. Nc3 {[%clk 0:03:01]}  a6 {[%clk 0:03:01]} 8. b3 {[%clk 0:02:55]}  Rb8 {[%clk 0:03:01]} 9. Bb2 {[%clk 0:02:54]}  b5 {[%clk 0:03:00]} 10. cxb5 {[%clk 0:02:55]}  axb5 {[%clk 0:03:01]} 11. Rc1 {[%clk 0:02:55]}  Bd7 {[%clk 0:03:00]} 12. d5 {[%clk 0:02:47]}  Na5 {[%clk 0:02:55]} 13. Nd4 {[%clk 0:02:37]}  e6 {[%clk 0:02:51]} 14. dxe6 {[%clk 0:02:19]}  fxe6 {[%clk 0:02:51]} 15. b4 {[%clk 0:02:19]}  Nc4 {[%clk 0:02:51]} 16. Ba1 {[%clk 0:02:20]}  Qe8 {[%clk 0:02:42]} 17. Qd3 {[%clk 0:02:01]}  Ng4 {[%clk 0:02:33]} 18. h3 {[%clk 0:01:48]}  Nge5 {[%clk 0:02:32]} 19. Qd1 {[%clk 0:01:49]}  Rb6 {[%clk 0:02:19]} 20. e4 {[%clk 0:01:48]}  Nc6 {[%clk 0:02:05]} 21. Ndxb5 {[%clk 0:01:32]}  Nxb4 {[%clk 0:01:59]} 22. a4 {[%clk 0:01:14]}  c5 {[%clk 0:01:57]} 23. Qe2 {[%clk 0:01:07]}  Na5 {[%clk 0:01:51]} 24. Rcd1 {[%clk 0:01:04]}  Qe7 {[%clk 0:01:49]} 25. Rb1 {[%clk 0:00:49]}  Nac6 {[%clk 0:01:42]} 26. Kh1 {[%clk 0:00:41]}  Nd4 {[%clk 0:01:41]} 27. Nxd4 {[%clk 0:00:41]}  Bxd4 {[%clk 0:01:42]} 28. Nb5 {[%clk 0:00:39]}  Bxa1 {[%clk 0:01:39]} 29. Rxa1 {[%clk 0:00:40]}  Rfb8 {[%clk 0:01:35]} 30. Rfd1 {[%clk 0:00:37]}  Bxb5 {[%clk 0:01:33]} 31. axb5 {[%clk 0:00:37]}  Rxb5 {[%clk 0:01:33]} 32. Qd2 {[%clk 0:00:37]}  R5b6 {[%clk 0:01:33]} 33. Rac1 {[%clk 0:00:32]}  Rf8 {[%clk 0:01:24]} 34. Kg1 {[%clk 0:00:31]}  Ra6 {[%clk 0:01:23]} 35. Ra1 {[%clk 0:00:26]}  Rxa1 {[%clk 0:01:23]} 36. Rxa1 {[%clk 0:00:26]}  Nc6 {[%clk 0:01:23]} 37. Ra6 {[%clk 0:00:10]}  Nd4 {[%clk 0:01:22]} 38. e5 {[%clk 0:00:10]}  dxe5 {[%clk 0:01:16]} 39. Qa2 {[%clk 0:00:10]}  Rf7 {[%clk 0:01:10]} 40. Ra8+ {[%clk 0:00:09]}  Kg7 {[%clk 0:01:10]} 41. h4 {[%clk 0:00:09]}  h5 {[%clk 0:01:09]} 42. Rc8 {[%clk 0:00:09]}  Rf8 {[%clk 0:01:05]} 43. Qa8 {[%clk 0:00:05]}  Rxc8 {[%clk 0:01:05]} 44. Qxc8 {[%clk 0:00:06]}  Nf5 {[%clk 0:01:02]} 45. Be4 {[%clk 0:00:04]}  Qd6 {[%clk 0:00:59]} 46. Kg2 {[%clk 0:00:03]}  Ne7 {[%clk 0:00:57]} 47. Qb7 {[%clk 0:00:03]}  Kf6 {[%clk 0:00:57]} 48. Bc2 {[%clk 0:00:02]}  Qd5+ {[%clk 0:00:56]} 49. Qxd5 {[%clk 0:00:02]}  exd5 {[%clk 0:00:57]} 50. Kf3 {[%clk 0:00:02]}  c4 {[%clk 0:00:57]} 0-1


[Site "https://www.chess.com"]

[Event "Titled Tuesday Blitz August 09 Early 2022"]
[White "Sarkar, Justin"]
[Black "Antonio, Rogelio Jr"]
[WhiteFideId "2010011"]
[BlackFideId "5200032"]
[WhiteElo "2076"]
[BlackElo "2415"]
[Result "0-1"]
[Round "03"]
[TimeControl "180+1"]
[Date "2022.08.09"]
[WhiteClock "0:00:01"]
[BlackClock "0:01:22"]

1. d4 {[%clk 0:02:56]}  Nf6 {[%clk 0:02:59]} 2. c4 {[%clk 0:02:55]}  c5 {[%clk 0:02:59]} 3. d5 {[%clk 0:02:49]}  e6 {[%clk 0:02:59]} 4. Nc3 {[%clk 0:02:45]}  exd5 {[%clk 0:02:59]} 5. cxd5 {[%clk 0:02:44]}  Bd6 {[%clk 0:03:00]} 6. Nf3 {[%clk 0:02:40]}  a6 {[%clk 0:02:58]} 7. Bg5 {[%clk 0:02:26]}  h6 {[%clk 0:02:57]} 8. Ne4 {[%clk 0:02:03]}  hxg5 {[%clk 0:02:44]} 9. Nxd6+ {[%clk 0:02:02]}  Kf8 {[%clk 0:02:44]} 10. Nxg5 {[%clk 0:01:50]}  Rh5 {[%clk 0:02:06]} 11. Qd2 {[%clk 0:01:28]}  Qc7 {[%clk 0:01:53]} 12. Ndxf7 {[%clk 0:01:01]}  d6 {[%clk 0:01:53]} 13. e3 {[%clk 0:00:15]}  Qe7 {[%clk 0:01:35]} 14. Be2 {[%clk 0:00:11]}  Rh4 {[%clk 0:01:35]} 15. g3 {[%clk 0:00:06]}  Ne4 {[%clk 0:01:30]} 16. Nxe4 {[%clk 0:00:03]}  Rxe4 {[%clk 0:01:29]} 17. Nh8 {[%clk 0:00:03]}  Bf5 {[%clk 0:01:25]} 18. Bd3 {[%clk 0:00:02]}  Kg8 {[%clk 0:01:24]} 19. Bxe4 {[%clk 0:00:01]}  Qxe4 {[%clk 0:01:23]} 20. O-O {[%clk 0:00:01]}  Qf3 {[%clk 0:01:23]} 21. Qd1 {[%clk 0:00:01]}  Qxd1 {[%clk 0:01:22]} 0-1


[Site "https://www.chess.com"]

[Event "Titled Tuesday Blitz August 09 Early 2022"]
[White "Seliverstov, Vladimir"]
[Black "Yaksin, Oleg"]
[WhiteFideId "4192036"]
[BlackFideId "24105880"]
[WhiteElo "2868"]
[BlackElo "2675"]
[Result "1/2-1/2"]
[Round "03"]
[TimeControl "180+1"]
[Date "2022.08.09"]
[WhiteClock "0:00:44"]
[BlackClock "0:00:09"]

1. d4 {[%clk 0:03:00]}  Nf6 {[%clk 0:02:52]} 2. c4 {[%clk 0:02:58]}  e6 {[%clk 0:02:52]} 3. g3 {[%clk 0:02:58]}  d5 {[%clk 0:02:52]} 4. Bg2 {[%clk 0:02:58]}  dxc4 {[%clk 0:02:52]} 5. Qa4+ {[%clk 0:02:58]}  Bd7 {[%clk 0:02:46]} 6. Qxc4 {[%clk 0:02:58]}  Bc6 {[%clk 0:02:47]} 7. Nf3 {[%clk 0:02:58]}  Nbd7 {[%clk 0:02:41]} 8. Nc3 {[%clk 0:02:57]}  Be7 {[%clk 0:02:36]} 9. O-O {[%clk 0:02:57]}  O-O {[%clk 0:02:36]} 10. Qd3 {[%clk 0:02:53]}  a6 {[%clk 0:02:28]} 11. e4 {[%clk 0:02:51]}  Nc5 {[%clk 0:02:24]} 12. Qe2 {[%clk 0:02:46]}  Ncxe4 {[%clk 0:02:23]} 13. Rd1 {[%clk 0:02:46]}  Rc8 {[%clk 0:02:05]} 14. Qc2 {[%clk 0:02:38]}  Nxc3 {[%clk 0:02:03]} 15. bxc3 {[%clk 0:02:38]}  b5 {[%clk 0:02:02]} 16. c4 {[%clk 0:02:31]}  Be4 {[%clk 0:01:59]} 17. Qe2 {[%clk 0:02:30]}  bxc4 {[%clk 0:01:52]} 18. Ne5 {[%clk 0:02:27]}  Bxg2 {[%clk 0:01:47]} 19. Kxg2 {[%clk 0:02:28]}  Qd5+ {[%clk 0:01:48]} 20. Kg1 {[%clk 0:02:28]}  c5 {[%clk 0:01:46]} 21. Bb2 {[%clk 0:02:11]}  cxd4 {[%clk 0:01:29]} 22. Rxd4 {[%clk 0:02:12]}  Qb5 {[%clk 0:01:29]} 23. a4 {[%clk 0:02:11]}  Qb3 {[%clk 0:01:22]} 24. Nxc4 {[%clk 0:02:05]}  Rfd8 {[%clk 0:01:11]} 25. Rxd8+ {[%clk 0:01:57]}  Rxd8 {[%clk 0:01:07]} 26. Ne5 {[%clk 0:01:57]}  Bc5 {[%clk 0:01:00]} 27. Rc1 {[%clk 0:01:49]}  Bb6 {[%clk 0:00:54]} 28. Nc6 {[%clk 0:01:43]}  Re8 {[%clk 0:00:45]} 29. Bxf6 {[%clk 0:01:43]}  gxf6 {[%clk 0:00:45]} 30. Rc4 {[%clk 0:01:35]}  f5 {[%clk 0:00:33]} 31. Ne5 {[%clk 0:01:22]}  Rd8 {[%clk 0:00:24]} 32. Kg2 {[%clk 0:01:13]}  Qd1 {[%clk 0:00:24]} 33. Qxd1 {[%clk 0:01:11]}  Rxd1 {[%clk 0:00:24]} 34. Rc6 {[%clk 0:01:11]}  Bd4 {[%clk 0:00:22]} 35. Nf3 {[%clk 0:01:11]}  Bf6 {[%clk 0:00:09]} 36. Rxa6 {[%clk 0:01:10]}  Ra1 {[%clk 0:00:09]} 37. Nd2 {[%clk 0:01:04]}  Kg7 {[%clk 0:00:09]} 38. Nc4 {[%clk 0:01:04]}  Bd4 {[%clk 0:00:08]} 39. Rd6 {[%clk 0:01:03]}  Bc5 {[%clk 0:00:07]} 40. Rc6 {[%clk 0:01:02]}  Bd4 {[%clk 0:00:08]} 41. Rd6 {[%clk 0:00:54]}  e5 {[%clk 0:00:08]} 42. f4 {[%clk 0:00:49]}  Rxa4 {[%clk 0:00:08]} 43. Nxe5 {[%clk 0:00:49]}  Bxe5 {[%clk 0:00:08]} 44. fxe5 {[%clk 0:00:50]}  Re4 {[%clk 0:00:09]} 45. Rd5 {[%clk 0:00:50]}  Kg6 {[%clk 0:00:09]} 46. Kf3 {[%clk 0:00:50]}  f6 {[%clk 0:00:09]} 47. exf6 {[%clk 0:00:48]}  Kxf6 {[%clk 0:00:10]} 48. Rd7 {[%clk 0:00:48]}  Kg6 {[%clk 0:00:10]} 49. Rd6+ {[%clk 0:00:48]}  Kg7 {[%clk 0:00:10]} 50. h3 {[%clk 0:00:48]}  h6 {[%clk 0:00:10]} 51. g4 {[%clk 0:00:47]}  Ra4 {[%clk 0:00:09]} 52. gxf5 {[%clk 0:00:47]}  Rh4 {[%clk 0:00:09]} 53. Kg3 {[%clk 0:00:47]}  Ra4 {[%clk 0:00:09]} 54. Rg6+ {[%clk 0:00:45]}  Kh7 {[%clk 0:00:09]} 55. Rg4 {[%clk 0:00:46]}  Ra3+ {[%clk 0:00:09]} 56. Kh4 {[%clk 0:00:44]}  Rf3 {[%clk 0:00:09]} 1/2-1/2


[Site "https://www.chess.com"]